[Event "Early-Titled-Tuesday-Blitz-October-24-2023"]
[Site "Chess.com"]
[Date "2023.10.24"]
[Round "10"]
[White "lilleper1"]
[Black "Jospem"]
[Result "1-0"]
[WhiteElo "2896"]
[BlackElo "3114"]
[TimeControl "180+1"]
[EndTime "9:53:58 PDT"]
[Termination "lilleper1 won by checkmate"]

1. e4 {[%clk 0:03:00.9]} 1... c5 {[%clk 0:02:59.9]} 2. Nf3 {[%clk 0:03:00.9]}
2... d6 {[%clk 0:03:00.6]} 3. Nc3 {[%clk 0:02:58.3]} 3... a6 {[%clk 0:02:58.3]}
4. a4 {[%clk 0:02:57]} 4... e6 {[%clk 0:02:55.6]} 5. d4 {[%clk 0:02:56.6]} 5...
cxd4 {[%clk 0:02:56.5]} 6. Nxd4 {[%clk 0:02:57]} 6... Nf6 {[%clk 0:02:57.2]} 7.
Be2 {[%clk 0:02:56.9]} 7... Bd7 {[%clk 0:02:57.8]} 8. O-O {[%clk 0:02:56.8]}
8... Nc6 {[%clk 0:02:58.5]} 9. Be3 {[%clk 0:02:56.1]} 9... Be7 {[%clk
0:02:58.9]} 10. Nb3 {[%clk 0:02:55.6]} 10... b6 {[%clk 0:02:57.8]} 11. f4 {[%clk
0:02:41.5]} 11... Qc7 {[%clk 0:02:58]} 12. Kh1 {[%clk 0:02:39.5]} 12... h5
{[%clk 0:02:57.4]} 13. Qe1 {[%clk 0:02:38.5]} 13... Nb4 {[%clk 0:02:45.1]} 14.
Rc1 {[%clk 0:02:11.8]} 14... d5 {[%clk 0:02:45.3]} 15. e5 {[%clk 0:01:55.3]}
15... Ne4 {[%clk 0:02:45.5]} 16. Nxe4 {[%clk 0:01:53.3]} 16... dxe4 {[%clk
0:02:46.4]} 17. Qf2 {[%clk 0:01:52.9]} 17... Nd5 {[%clk 0:02:43]} 18. Bd4 {[%clk
0:01:48.3]} 18... Bxa4 {[%clk 0:02:38.3]} 19. c4 {[%clk 0:01:41.5]} 19... Nb4
{[%clk 0:02:13.2]} 20. Bxb6 {[%clk 0:01:39.4]} 20... Qc8 {[%clk 0:02:13.8]} 21.
Na5 {[%clk 0:01:22.8]} 21... Nc6 {[%clk 0:02:10.6]} 22. b3 {[%clk 0:01:10]}
22... Nxa5 {[%clk 0:02:10.9]} 23. bxa4 {[%clk 0:01:10.1]} 23... Nb3 {[%clk
0:02:11.7]} 24. Rc3 {[%clk 0:01:03.6]} 24... Bc5 {[%clk 0:02:06.6]} 25. Bxc5
{[%clk 0:01:02.9]} 25... Nxc5 {[%clk 0:02:07.5]} 26. Qg3 {[%clk 0:00:56]} 26...
g6 {[%clk 0:02:05.4]} 27. a5 {[%clk 0:00:52.6]} 27... Qc7 {[%clk 0:02:03.9]} 28.
Ra3 {[%clk 0:00:49.4]} 28... Rd8 {[%clk 0:02:03]} 29. Qh4 {[%clk 0:00:47.2]}
29... Qe7 {[%clk 0:02:03]} 30. Qh3 {[%clk 0:00:43.8]} 30... Kf8 {[%clk
0:02:01.6]} 31. Raa1 {[%clk 0:00:37.6]} 31... Kg7 {[%clk 0:02:00]} 32. Qg3
{[%clk 0:00:36.1]} 32... h4 {[%clk 0:01:59.4]} 33. Qe3 {[%clk 0:00:30.3]} 33...
Qc7 {[%clk 0:01:59.6]} 34. Rfb1 {[%clk 0:00:26.4]} 34... h3 {[%clk 0:01:54.2]}
35. gxh3 {[%clk 0:00:22.4]} 35... Rh4 {[%clk 0:01:47.9]} 36. Rb6 {[%clk
0:00:20.1]} 36... Nd3 {[%clk 0:01:46.1]} 37. Rf1 {[%clk 0:00:19.7]} 37... Qxc4
{[%clk 0:01:45.4]} 38. Qg3 {[%clk 0:00:17]} 38... Rhh8 {[%clk 0:01:26.4]} 39. f5
{[%clk 0:00:17.4]} 39... exf5 {[%clk 0:01:08.3]} 40. Rxf5 {[%clk 0:00:17.5]}
40... Qd5 {[%clk 0:01:00.4]} 41. Rbf6 {[%clk 0:00:13.3]} 41... Rxh3 {[%clk
0:00:28.8]} 42. Rxf7+ {[%clk 0:00:12.1]} 42... Qxf7 {[%clk 0:00:29.7]} 43. Rxf7+
{[%clk 0:00:11.3]} 43... Kxf7 {[%clk 0:00:30.6]} 44. Qg5 {[%clk 0:00:10.2]}
44... Rdh8 {[%clk 0:00:16.9]} 45. Qf6+ {[%clk 0:00:09.4]} 45... Ke8 {[%clk
0:00:17.6]} 46. Qe6+ {[%clk 0:00:07.3]} 46... Kf8 {[%clk 0:00:18.3]} 47. Qf6+
{[%clk 0:00:07.4]} 47... Ke8 {[%clk 0:00:19.1]} 48. Qxg6+ {[%clk 0:00:06.8]}
48... Ke7 {[%clk 0:00:15.4]} 49. Qf6+ {[%clk 0:00:06.3]} 49... Ke8 {[%clk
0:00:13.1]} 50. Qe6+ {[%clk 0:00:06.6]} 50... Kf8 {[%clk 0:00:13]} 51. Qf6+
{[%clk 0:00:06.7]} 51... Ke8 {[%clk 0:00:13.8]} 52. Qg6+ {[%clk 0:00:05.9]}
52... Kd8 {[%clk 0:00:12]} 53. Qd6+ {[%clk 0:00:05.6]} 53... Ke8 {[%clk
0:00:12.6]} 54. Qe6+ {[%clk 0:00:06]} 54... Kd8 {[%clk 0:00:12.2]} 55. Qd6+
{[%clk 0:00:04.7]} 55... Kc8 {[%clk 0:00:10.1]} 56. Qc6+ {[%clk 0:00:04.6]}
56... Kb8 {[%clk 0:00:10.3]} 57. Qb6+ {[%clk 0:00:05.2]} 57... Ka8 {[%clk
0:00:11.1]} 58. Qxa6+ {[%clk 0:00:06.1]} 58... Kb8 {[%clk 0:00:11.7]} 59. Qb6+
{[%clk 0:00:06.8]} 59... Kc8 {[%clk 0:00:12.5]} 60. Qg1 {[%clk 0:00:07.3]} 60...
R3h6 {[%clk 0:00:09.3]} 61. Bg4+ {[%clk 0:00:06.7]} 61... Kd8 {[%clk 0:00:08.7]}
62. h3 {[%clk 0:00:07]} 62... Ke8 {[%clk 0:00:06.3]} 63. Qd4 {[%clk 0:00:05.4]}
63... Rf8 {[%clk 0:00:03.1]} 64. Qd7# {[%clk 0:00:05]} 1-0

[Event "Early-Titled-Tuesday-Blitz-October-24-2023"]
[Site "Chess.com"]
[Date "2023.10.24"]
[Round "10"]
[White "CSB7"]
[Black "N4700000"]
[Result "1-0"]
[WhiteElo "2718"]
[BlackElo "2550"]
[TimeControl "180+1"]
[EndTime "9:54:31 PDT"]
[Termination "CSB7 won by checkmate"]

1. d4 {[%clk 0:03:00.9]} 1... Nf6 {[%clk 0:02:59]} 2. c4 {[%clk 0:03:00.6]} 2...
g6 {[%clk 0:02:59.4]} 3. Nc3 {[%clk 0:02:57.8]} 3... Bg7 {[%clk 0:02:59.7]} 4.
e4 {[%clk 0:02:51.6]} 4... d6 {[%clk 0:02:58.9]} 5. Nf3 {[%clk 0:02:46.1]} 5...
O-O {[%clk 0:02:58.7]} 6. Be2 {[%clk 0:02:46]} 6... e5 {[%clk 0:02:58]} 7. O-O
{[%clk 0:02:45.5]} 7... Nc6 {[%clk 0:02:56.6]} 8. d5 {[%clk 0:02:44.2]} 8... Ne7
{[%clk 0:02:56.7]} 9. Qc2 {[%clk 0:02:37.7]} 9... h6 {[%clk 0:02:43.1]} 10. Rd1
{[%clk 0:02:30.4]} 10... a5 {[%clk 0:02:37.4]} 11. a3 {[%clk 0:02:20.5]} 11...
Nd7 {[%clk 0:02:29.9]} 12. Ne1 {[%clk 0:02:11.7]} 12... f5 {[%clk 0:02:29.1]}
13. f3 {[%clk 0:02:11.9]} 13... f4 {[%clk 0:02:09.7]} 14. Nd3 {[%clk 0:02:09.7]}
14... g5 {[%clk 0:02:08.8]} 15. Nf2 {[%clk 0:01:43.2]} 15... h5 {[%clk
0:02:00.8]} 16. Rb1 {[%clk 0:01:37.8]} 16... Nf6 {[%clk 0:01:55.2]} 17. c5
{[%clk 0:01:38.1]} 17... g4 {[%clk 0:01:25.2]} 18. Nb5 {[%clk 0:01:34.8]} 18...
g3 {[%clk 0:01:22.9]} 19. Nh1 {[%clk 0:01:34.8]} 19... gxh2+ {[%clk 0:01:21]}
20. Kxh2 {[%clk 0:01:35.7]} 20... Ne8 {[%clk 0:01:19.3]} 21. Bd2 {[%clk
0:01:28.2]} 21... Ng6 {[%clk 0:01:16.8]} 22. Be1 {[%clk 0:01:27.5]} 22... Bf6
{[%clk 0:01:15]} 23. Rbc1 {[%clk 0:01:16.1]} 23... Rf7 {[%clk 0:01:10.1]} 24.
Qc3 {[%clk 0:00:58.1]} 24... Bh4 {[%clk 0:01:04.4]} 25. Bxh4 {[%clk 0:00:45.1]}
25... Qxh4+ {[%clk 0:01:02.8]} 26. Kg1 {[%clk 0:00:45]} 26... Rg7 {[%clk
0:01:01.7]} 27. Qe1 {[%clk 0:00:43]} 27... Qg5 {[%clk 0:00:59.9]} 28. Bf1 {[%clk
0:00:32.2]} 28... Nh4 {[%clk 0:00:56.7]} 29. Qf2 {[%clk 0:00:30.7]} 29... Bh3
{[%clk 0:00:50.2]} 30. Rd2 {[%clk 0:00:28.7]} 30... Bxg2 {[%clk 0:00:20.7]} 31.
Bxg2 {[%clk 0:00:28.3]} 31... Nxg2 {[%clk 0:00:21.1]} 32. Qxg2 {[%clk
0:00:20.3]} 32... Qf6 {[%clk 0:00:21.5]} 33. cxd6 {[%clk 0:00:20.2]} 33... cxd6
{[%clk 0:00:20.4]} 34. Kf1 {[%clk 0:00:16.7]} 34... Rxg2 {[%clk 0:00:19.6]} 35.
Rxg2+ {[%clk 0:00:17.6]} 35... Kh8 {[%clk 0:00:19.6]} 36. Nf2 {[%clk 0:00:18]}
36... Qf7 {[%clk 0:00:14.9]} 37. Ke2 {[%clk 0:00:16.4]} 37... Qd7 {[%clk
0:00:15.1]} 38. a4 {[%clk 0:00:15.5]} 38... Rc8 {[%clk 0:00:15.1]} 39. Rh1
{[%clk 0:00:11.4]} 39... Qf7 {[%clk 0:00:14.3]} 40. Kd2 {[%clk 0:00:10.9]} 40...
b6 {[%clk 0:00:10]} 41. Nd3 {[%clk 0:00:07.6]} 41... Rc4 {[%clk 0:00:09.8]} 42.
b3 {[%clk 0:00:07.5]} 42... Rc8 {[%clk 0:00:08.8]} 43. Nb2 {[%clk 0:00:08.1]}
43... Rc5 {[%clk 0:00:06.7]} 44. Nc4 {[%clk 0:00:07.9]} 44... Rxc4 {[%clk
0:00:06.5]} 45. bxc4 {[%clk 0:00:08.8]} 45... Kh7 {[%clk 0:00:05.6]} 46. Rg5
{[%clk 0:00:08.3]} 46... Kh6 {[%clk 0:00:05.5]} 47. Rhxh5+ {[%clk 0:00:06]}
47... Qxh5 {[%clk 0:00:05.4]} 48. Rxh5+ {[%clk 0:00:06.9]} 48... Kxh5 {[%clk
0:00:06]} 49. Ke2 {[%clk 0:00:07.8]} 49... Kh4 {[%clk 0:00:05.8]} 50. Kf2 {[%clk
0:00:08.2]} 50... Kh3 {[%clk 0:00:05.7]} 51. Na7 {[%clk 0:00:07.1]} 51... Nc7
{[%clk 0:00:02.9]} 52. Nc8 {[%clk 0:00:06.8]} 52... b5 {[%clk 0:00:01.9]} 53.
cxb5 {[%clk 0:00:05.9]} 53... Nxb5 {[%clk 0:00:02.2]} 54. axb5 {[%clk
0:00:06.1]} 54... a4 {[%clk 0:00:02.6]} 55. b6 {[%clk 0:00:06.7]} 55... a3
{[%clk 0:00:03.1]} 56. b7 {[%clk 0:00:07.6]} 56... a2 {[%clk 0:00:03.6]} 57.
b8=Q {[%clk 0:00:06.5]} 57... a1=Q {[%clk 0:00:04.2]} 58. Nxd6 {[%clk 0:00:03]}
58... Qa2+ {[%clk 0:00:04.5]} 59. Ke1 {[%clk 0:00:03.1]} 59... Kg3 {[%clk
0:00:03.9]} 60. Nf5+ {[%clk 0:00:02]} 60... Kxf3 {[%clk 0:00:04.1]} 61. Nh4+
{[%clk 0:00:02.1]} 61... Kxe4 {[%clk 0:00:03.9]} 62. Qb4+ {[%clk 0:00:02.3]}
62... Kxd5 {[%clk 0:00:03.8]} 63. Nf3 {[%clk 0:00:02.6]} 63... Qa1+ {[%clk
0:00:02.8]} 64. Kf2 {[%clk 0:00:02.5]} 64... Qa2+ {[%clk 0:00:02.5]} 65. Ke1
{[%clk 0:00:02.7]} 65... Qa1+ {[%clk 0:00:02.3]} 66. Kf2 {[%clk 0:00:03.1]}
66... Qa7+ {[%clk 0:00:02.1]} 67. Kg2 {[%clk 0:00:02.3]} 67... Qe3 {[%clk
0:00:02.5]} 68. Qb5+ {[%clk 0:00:01.8]} 68... Ke6 {[%clk 0:00:02.4]} 69. Qc6+
{[%clk 0:00:02.1]} 69... Kf5 {[%clk 0:00:02.1]} 70. Qd7+ {[%clk 0:00:02.2]}
70... Ke4 {[%clk 0:00:02.3]} 71. Qc6+ {[%clk 0:00:02.1]} 71... Kf5 {[%clk
0:00:02.4]} 72. Qd7+ {[%clk 0:00:02.4]} 72... Ke4 {[%clk 0:00:02.8]} 73. Ng5#
{[%clk 0:00:02.7]} 1-0

[Event "Early-Titled-Tuesday-Blitz-October-24-2023"]
[Site "Chess.com"]
[Date "2023.10.24"]
[Round "10"]
[White "JimDiGrease"]
[Black "SlavenPastar"]
[Result "1-0"]
[WhiteElo "2875"]
[BlackElo "2627"]
[TimeControl "180+1"]
[EndTime "9:54:32 PDT"]
[Termination "JimDiGrease won by resignation"]

1. d4 {[%clk 0:03:00.9]} 1... b6 {[%clk 0:03:00.9]} 2. e4 {[%clk 0:03:00.5]}
2... Bb7 {[%clk 0:03:01.5]} 3. Bd3 {[%clk 0:02:59.6]} 3... Nf6 {[%clk
0:03:02.1]} 4. Nd2 {[%clk 0:02:58.2]} 4... e6 {[%clk 0:03:01.7]} 5. Ne2 {[%clk
0:02:58.9]} 5... d5 {[%clk 0:03:01]} 6. e5 {[%clk 0:02:59.3]} 6... Ng8 {[%clk
0:03:01.2]} 7. O-O {[%clk 0:02:59.2]} 7... c5 {[%clk 0:03:01.9]} 8. c3 {[%clk
0:02:59.5]} 8... Ne7 {[%clk 0:02:59.5]} 9. Ng3 {[%clk 0:02:45.4]} 9... g6 {[%clk
0:02:56.8]} 10. Nf3 {[%clk 0:02:42.1]} 10... h5 {[%clk 0:02:55.5]} 11. Bg5
{[%clk 0:02:40.6]} 11... Bg7 {[%clk 0:02:45.5]} 12. Qd2 {[%clk 0:02:23.6]} 12...
Nbc6 {[%clk 0:02:41]} 13. Qf4 {[%clk 0:02:22.3]} 13... Qd7 {[%clk 0:02:34.4]}
14. a3 {[%clk 0:02:05.3]} 14... a5 {[%clk 0:02:16.4]} 15. Bf6 {[%clk 0:01:57.3]}
15... Bxf6 {[%clk 0:02:03.9]} 16. Qxf6 {[%clk 0:01:42]} 16... Rf8 {[%clk
0:01:51.4]} 17. Rfd1 {[%clk 0:01:26.3]} 17... O-O-O {[%clk 0:01:37.7]} 18. Bb5
{[%clk 0:01:09.8]} 18... Kb8 {[%clk 0:01:25.1]} 19. dxc5 {[%clk 0:01:02.5]}
19... bxc5 {[%clk 0:01:23.6]} 20. Ne4 {[%clk 0:01:02.4]} 20... Ng8 {[%clk
0:01:18.7]} 21. Qf4 {[%clk 0:00:59.6]} 21... Qe7 {[%clk 0:00:55.9]} 22. Nd6
{[%clk 0:00:50.8]} 22... Ka8 {[%clk 0:00:41.8]} 23. b4 {[%clk 0:00:37]} 23...
Nxe5 {[%clk 0:00:38.7]} 24. bxc5 {[%clk 0:00:35]} 24... Nxf3+ {[%clk 0:00:31]}
25. Qxf3 {[%clk 0:00:33.3]} 25... Rxd6 {[%clk 0:00:29]} 26. cxd6 {[%clk
0:00:30.2]} 26... Qxd6 {[%clk 0:00:29.9]} 27. Rab1 {[%clk 0:00:30.2]} 27... Ne7
{[%clk 0:00:29]} 28. c4 {[%clk 0:00:26.5]} 28... d4 {[%clk 0:00:26.2]} 29. Qb3
{[%clk 0:00:09.6]} 29... Nf5 {[%clk 0:00:20.7]} 30. Qa4 {[%clk 0:00:09.2]} 30...
Qc7 {[%clk 0:00:16.6]} 31. c5 {[%clk 0:00:09.5]} 31... Be4 {[%clk 0:00:12.4]}
32. Rb2 {[%clk 0:00:05.6]} 32... Rb8 {[%clk 0:00:11.6]} 33. Rdd2 {[%clk
0:00:04.4]} 33... Qxc5 {[%clk 0:00:10.4]} 34. Qxa5+ {[%clk 0:00:04.6]} 34... Qa7
{[%clk 0:00:10.7]} 35. Qb4 {[%clk 0:00:03.3]} 35... Qb6 {[%clk 0:00:08.3]} 36.
a4 {[%clk 0:00:03.7]} 36... Nd6 {[%clk 0:00:08]} 37. Qxd4 {[%clk 0:00:02.9]}
37... Qxd4 {[%clk 0:00:04.7]} 38. Rxd4 {[%clk 0:00:03.8]} 38... Rb6 {[%clk
0:00:03.9]} 39. f3 {[%clk 0:00:04.3]} 39... Bd5 {[%clk 0:00:03.7]} 40. Kf2
{[%clk 0:00:04.2]} 40... Nxb5 {[%clk 0:00:03.6]} 41. Rxb5 {[%clk 0:00:02.6]}
41... Rc6 {[%clk 0:00:04]} 42. Rb2 {[%clk 0:00:02.9]} 42... Ra6 {[%clk
0:00:03.8]} 43. Rdb4 {[%clk 0:00:03.4]} 43... Ra5 {[%clk 0:00:03.4]} 44. Rb8+
{[%clk 0:00:03.4]} 44... Ka7 {[%clk 0:00:03.9]} 45. Rf8 {[%clk 0:00:04.3]} 45...
e5 {[%clk 0:00:03.4]} 46. Rd8 {[%clk 0:00:04.3]} 46... Be6 {[%clk 0:00:03.3]}
47. Rb5 {[%clk 0:00:03]} 47... Rxa4 {[%clk 0:00:03.2]} 48. Rxe5 {[%clk
0:00:03.7]} 48... Ra2+ {[%clk 0:00:03.3]} 49. Re2 {[%clk 0:00:02.4]} 49... Ra4
{[%clk 0:00:03.5]} 50. Ke3 {[%clk 0:00:01.8]} 50... Kb6 {[%clk 0:00:03.7]} 51.
Rd4 {[%clk 0:00:02.4]} 51... Ra3+ {[%clk 0:00:03.6]} 52. Rd3 {[%clk 0:00:02.9]}
52... Ra1 {[%clk 0:00:04.3]} 53. Rb2+ {[%clk 0:00:02.7]} 53... Kc5 {[%clk
0:00:04.4]} 54. Rc2+ {[%clk 0:00:03.3]} 54... Kb4 {[%clk 0:00:04.6]} 55. Rd4+
{[%clk 0:00:03.9]} 55... Kb5 {[%clk 0:00:05.1]} 56. Rc7 {[%clk 0:00:04.3]} 56...
Ra2 {[%clk 0:00:04.1]} 57. Rd2 {[%clk 0:00:04.9]} 57... Ra3+ {[%clk 0:00:04]}
58. Kf4 {[%clk 0:00:05.3]} 58... Ra4+ {[%clk 0:00:03.3]} 59. Kg5 {[%clk
0:00:05.6]} 59... Kb6 {[%clk 0:00:03.2]} 60. Rc3 {[%clk 0:00:05.5]} 60... Ra5+
{[%clk 0:00:03.3]} 61. Kf6 {[%clk 0:00:05.5]} 61... Rb5 {[%clk 0:00:04]} 62.
Rcc2 {[%clk 0:00:04.1]} 62... Rf5+ {[%clk 0:00:02.9]} 63. Ke7 {[%clk 0:00:04.7]}
63... Bd5 {[%clk 0:00:01.8]} 64. Rc3 {[%clk 0:00:04]} 64... Be6 {[%clk
0:00:01.9]} 65. Rb2+ {[%clk 0:00:04.6]} 65... Ka6 {[%clk 0:00:01.4]} 66. Ra3+
{[%clk 0:00:04.8]} 66... Ra5 {[%clk 0:00:02.1]} 67. Rxa5+ {[%clk 0:00:05.5]}
67... Kxa5 {[%clk 0:00:03]} 68. Kf6 {[%clk 0:00:06.3]} 68... Ka4 {[%clk
0:00:03]} 69. Rb8 {[%clk 0:00:07]} 69... Ka3 {[%clk 0:00:03]} 70. Rf8 {[%clk
0:00:07.6]} 70... Bc4 {[%clk 0:00:02.8]} 71. Rxf7 {[%clk 0:00:08.5]} 71... Bxf7
{[%clk 0:00:03]} 72. Kxf7 {[%clk 0:00:09.4]} 72... g5 {[%clk 0:00:03.4]} 73. Kg6
{[%clk 0:00:10]} 73... g4 {[%clk 0:00:04.3]} 74. Kxh5 {[%clk 0:00:09.6]} 74...
gxf3 {[%clk 0:00:04.2]} 75. gxf3 {[%clk 0:00:10.5]} 75... Kb4 {[%clk 0:00:05]}
76. f4 {[%clk 0:00:10.8]} 76... Kc5 {[%clk 0:00:05.9]} 77. f5 {[%clk 0:00:11.7]}
77... Kd6 {[%clk 0:00:06.8]} 78. f6 {[%clk 0:00:12.5]} 78... Kd7 {[%clk
0:00:06.9]} 79. Kg6 {[%clk 0:00:13.4]} 79... Ke8 {[%clk 0:00:07.8]} 80. f7+
{[%clk 0:00:14.3]} 80... Kf8 {[%clk 0:00:08.7]} 81. h4 {[%clk 0:00:14.3]} 81...
Ke7 {[%clk 0:00:08.7]} 82. Kg7 {[%clk 0:00:15.2]} 82... Ke6 {[%clk 0:00:09.1]}
83. f8=Q {[%clk 0:00:16.1]} 1-0

[Event "Early-Titled-Tuesday-Blitz-October-24-2023"]
[Site "Chess.com"]
[Date "2023.10.24"]
[Round "10"]
[White "ketster"]
[Black "Pumpkin_in_moonlight"]
[Result "1/2-1/2"]
[WhiteElo "2497"]
[BlackElo "2362"]
[TimeControl "180+1"]
[EndTime "9:54:33 PDT"]
[Termination "Game drawn by agreement"]

1. d4 {[%clk 0:02:56.1]} 1... Nf6 {[%clk 0:02:58.2]} 2. Nf3 {[%clk 0:02:55.8]}
2... g6 {[%clk 0:02:57.3]} 3. c4 {[%clk 0:02:55.4]} 3... Bg7 {[%clk 0:02:55.9]}
4. Nc3 {[%clk 0:02:55.8]} 4... O-O {[%clk 0:02:51.6]} 5. e4 {[%clk 0:02:56]}
5... d6 {[%clk 0:02:51.4]} 6. Be2 {[%clk 0:02:56.5]} 6... e5 {[%clk 0:02:39.4]}
7. O-O {[%clk 0:02:54.6]} 7... exd4 {[%clk 0:02:33.1]} 8. Nxd4 {[%clk
0:02:54.3]} 8... Re8 {[%clk 0:02:32.7]} 9. f3 {[%clk 0:02:53.3]} 9... Nbd7
{[%clk 0:02:17]} 10. Bg5 {[%clk 0:02:49.6]} 10... c6 {[%clk 0:02:12.7]} 11. Qd2
{[%clk 0:02:44.9]} 11... Qb6 {[%clk 0:02:09.4]} 12. Be3 {[%clk 0:02:39.5]} 12...
Qc7 {[%clk 0:02:07.3]} 13. Rad1 {[%clk 0:02:31]} 13... Ne5 {[%clk 0:02:05.8]}
14. Kh1 {[%clk 0:02:16.3]} 14... a5 {[%clk 0:02:02.1]} 15. Nc2 {[%clk
0:02:02.6]} 15... a4 {[%clk 0:01:58.3]} 16. Qxd6 {[%clk 0:01:57]} 16... Qxd6
{[%clk 0:01:49.5]} 17. Rxd6 {[%clk 0:01:57.9]} 17... Be6 {[%clk 0:01:48.3]} 18.
b3 {[%clk 0:01:51.8]} 18... axb3 {[%clk 0:01:46.5]} 19. axb3 {[%clk 0:01:52.7]}
19... b5 {[%clk 0:01:14.8]} 20. f4 {[%clk 0:01:17.2]} 20... Neg4 {[%clk
0:01:06.4]} 21. Bd4 {[%clk 0:01:06.3]} 21... bxc4 {[%clk 0:00:34.7]} 22. bxc4
{[%clk 0:01:04.7]} 22... c5 {[%clk 0:00:18.7]} 23. Bg1 {[%clk 0:00:47.5]} 23...
Rad8 {[%clk 0:00:10.6]} 24. Rfd1 {[%clk 0:00:27.1]} 24... Rxd6 {[%clk
0:00:10.5]} 25. Rxd6 {[%clk 0:00:28]} 25... Nh5 {[%clk 0:00:09.7]} 26. Nd5
{[%clk 0:00:19.9]} 26... Bxd5 {[%clk 0:00:09.3]} 27. cxd5 {[%clk 0:00:19.6]}
27... Ngf6 {[%clk 0:00:05.8]} 28. e5 {[%clk 0:00:17.3]} 28... Ne4 {[%clk
0:00:04.3]} 29. Rc6 {[%clk 0:00:09.8]} 29... Nxf4 {[%clk 0:00:04.9]} 30. Bf3
{[%clk 0:00:10.4]} 30... Nd2 {[%clk 0:00:04.5]} 31. Be3 {[%clk 0:00:07]} 31...
Nxf3 {[%clk 0:00:04.1]} 32. Bxf4 {[%clk 0:00:05.7]} 32... Nd4 {[%clk 0:00:04.3]}
33. Rxc5 {[%clk 0:00:04.7]} 33... Nxc2 {[%clk 0:00:04.9]} 34. Rxc2 {[%clk
0:00:05.6]} 34... Bxe5 {[%clk 0:00:03.7]} 35. Re2 {[%clk 0:00:05.1]} 35... f6
{[%clk 0:00:04.3]} 36. Bxe5 {[%clk 0:00:05.1]} 36... fxe5 {[%clk 0:00:05]} 37.
g3 {[%clk 0:00:04.2]} 37... Kf7 {[%clk 0:00:05.3]} 38. Kg2 {[%clk 0:00:04.4]}
38... Kf6 {[%clk 0:00:05.7]} 39. Kf3 {[%clk 0:00:04.8]} 39... Rd8 {[%clk
0:00:06]} 40. Ke4 {[%clk 0:00:04.5]} 40... Ra8 {[%clk 0:00:06.2]} 41. Rf2+
{[%clk 0:00:04.8]} 41... Ke7 {[%clk 0:00:05.2]} 42. Kxe5 {[%clk 0:00:05.7]}
42... Ra3 {[%clk 0:00:03.7]} 43. d6+ {[%clk 0:00:06.1]} 43... Ke8 {[%clk
0:00:03.5]} 44. Re2 {[%clk 0:00:04.3]} 44... Kd7 {[%clk 0:00:03.4]} 45. Rc2
{[%clk 0:00:03.5]} 45... Ra5+ {[%clk 0:00:03.9]} 46. Kf6 {[%clk 0:00:03.8]}
46... Kxd6 {[%clk 0:00:04.3]} 47. Kg7 {[%clk 0:00:04.4]} 47... Ra7+ {[%clk
0:00:03.9]} 48. Kh6 {[%clk 0:00:05.1]} 48... Ke6 {[%clk 0:00:04.1]} 49. Rf2
{[%clk 0:00:05.9]} 49... Rb7 {[%clk 0:00:03.7]} 50. g4 {[%clk 0:00:05.9]} 50...
Ke5 {[%clk 0:00:03.2]} 51. h4 {[%clk 0:00:05.6]} 51... Ke6 {[%clk 0:00:03.4]}
52. Rf8 {[%clk 0:00:04.7]} 52... Ke7 {[%clk 0:00:03]} 53. Rf4 {[%clk 0:00:04.5]}
53... Ke6 {[%clk 0:00:03.2]} 54. Rf2 {[%clk 0:00:04.7]} 54... Rc7 {[%clk
0:00:03.6]} 55. g5 {[%clk 0:00:04.7]} 55... Rd7 {[%clk 0:00:03.8]} 56. Re2+
{[%clk 0:00:04.6]} 56... Kf7 {[%clk 0:00:02.9]} 57. Rf2+ {[%clk 0:00:04.7]}
57... Ke6 {[%clk 0:00:03.1]} 58. Rf6+ {[%clk 0:00:04.4]} 58... Ke5 {[%clk
0:00:03.2]} 59. Rf1 {[%clk 0:00:05.2]} 59... Ke4 {[%clk 0:00:03.1]} 60. h5
{[%clk 0:00:05.8]} 60... gxh5 {[%clk 0:00:03]} 61. Kxh5 {[%clk 0:00:06.7]} 61...
Ke5 {[%clk 0:00:03.2]} 62. Rf6 {[%clk 0:00:07.3]} 62... Ke4 {[%clk 0:00:03.2]}
63. Kh6 {[%clk 0:00:07.9]} 63... Ke5 {[%clk 0:00:03.3]} 64. Rf8 {[%clk
0:00:08.3]} 64... Ra7 {[%clk 0:00:03.6]} 65. Rh8 {[%clk 0:00:08.8]} 65... Kf5
{[%clk 0:00:03.6]} 66. Rf8+ {[%clk 0:00:09.5]} 66... Kg4 {[%clk 0:00:03.3]} 67.
Rf2 {[%clk 0:00:10.2]} 67... Ra6+ {[%clk 0:00:03.5]} 68. Rf6 {[%clk 0:00:10]}
68... Ra7 {[%clk 0:00:03.1]} 69. Rf8 {[%clk 0:00:09.2]} 69... Ra6+ {[%clk
0:00:03.1]} 70. Kxh7 {[%clk 0:00:08]} 70... Kxg5 {[%clk 0:00:03.3]} 71. Rg8+
{[%clk 0:00:08.1]} 71... Kf5 {[%clk 0:00:03.8]} 72. Rf8+ {[%clk 0:00:08]} 72...
Ke5 {[%clk 0:00:04.5]} 73. Rf7 {[%clk 0:00:06.4]} 1/2-1/2